fUST/lending_fUST_20251001
["ID","MTS","AMOUNT","RATE_DAILY","PERIOD"]
[388678604,1759317033801,-500.0,0.00019178,2]
[388678606,1759317033810,-500.0,0.00019178,2]
[388678608,1759317033819,-3246.79,0.00019178,2]
[388678610,1759317033828,-500.0,0.00019178,2]
[388678612,1759317033838,-500.0,0.00019178,2]
[388678614,1759317033847,-500.0,0.00019178,2]
[388678616,1759317033856,-500.0,0.00019178,2]
[388678618,1759317033865,-541.5748501,0.00019178,2]
[388678620,1759317033874,-500.0,0.00019178,2]
[388678622,1759317033884,-213.36628015,0.00019178,2]
[388678624,1759317033893,-730.12,0.00019178,2]
[388678626,1759317033902,-500.0,0.00019178,2]
[388678628,1759317033911,-2515.61,0.00019178,2]
[388678630,1759317033920,-500.0,0.00019178,2]
[388678632,1759317033930,-500.0,0.00019178,2]
[388678634,1759317033939,-500.0,0.00019178,2]
[388678636,1759317033949,-335.26776425,0.00019178,2]
[388678638,1759317033958,-1017.09,0.00019178,2]
[388678657,1759317034137,-500.0,0.00019178,2]
[388678659,1759317034147,-500.0,0.00019178,2]
[388678661,1759317034156,-500.0,0.00019178,2]
[388678663,1759317034165,-500.0,0.00019178,2]
[388678665,1759317034175,-1451.28,0.00019178,2]
[388678666,1759317034184,-500.0,0.00019178,2]
[388678667,1759317034193,-500.0,0.00019178,2]
[388678668,1759317034202,-500.0,0.00019178,2]
[388678669,1759317034211,-500.0,0.00019178,2]
[388678670,1759317034221,-500.0,0.00019178,2]
[388678671,1759317034229,-577.05231505,0.00019178,2]
[388678672,1759317034239,-610.39035599,0.00019178,2]
[388678673,1759317034248,-500.0,0.00019178,2]
[388678674,1759317034257,-500.0,0.00019178,2]
[388678676,1759317034266,-500.0,0.00019178,2]
[388678678,1759317034274,-1045.88,0.00019178,2]
[388678680,1759317034283,-1355.68,0.00019178,2]
[388678682,1759317034293,-500.0,0.00019178,2]
[388678684,1759317034302,-500.0,0.00019178,2]
[388678686,1759317034311,-500.0,0.00019178,2]
[388678688,1759317034320,-662.04,0.00019178,2]
[388678690,1759317034329,-500.0,0.00019178,2]
[388678692,1759317034338,-779.29,0.00019178,2]
[388678694,1759317034347,-701.44,0.00019178,2]
[388678696,1759317034356,-500.0,0.00019178,2]
[388678697,1759317034365,-630.0,0.00019178,2]
[388678698,1759317034375,-500.0,0.00019178,2]
[388678699,1759317034389,-500.0,0.00019178,2]
[388678700,1759317034399,-766.39,0.00019178,2]
[388678702,1759317034408,-500.0,0.00019178,2]
[388678704,1759317034418,-594.95,0.00019178,2]
[388678706,1759317034427,-500.0,0.00019178,2]
[388678708,1759317034436,-500.0,0.00019178,2]
[388678710,1759317034445,-500.0,0.00019178,2]
[388678712,1759317034457,-500.0,0.00019178,2]
[388678714,1759317034469,-287.48299993,0.00019178,2]
[388678716,1759317034478,-500.0,0.00019178,2]
[388678717,1759317034487,-1058.77,0.00019178,2]
[388678718,1759317034498,-500.0,0.00019178,2]
[388678719,1759317034507,-2449.77,0.00019178,2]
[388678720,1759317034517,-500.0,0.00019178,2]
[388678721,1759317034527,-2057.41,0.00019178,2]
[388678722,1759317034538,-588.76724094,0.00019178,2]
[388678723,1759317034547,-500.0,0.00019178,2]
[388678724,1759317034556,-500.0,0.00019178,2]
[388678725,1759317034566,-435.22077893,0.00019178,2]
[388678726,1759317034575,-732.43,0.00019178,2]
[388678727,1759317034585,-500.0,0.00019178,2]
[388678728,1759317034594,-500.0,0.00019178,2]
[388678729,1759317034603,-500.0,0.00019178,2]
[388678730,1759317034613,-500.0,0.00019178,2]
[388678731,1759317034622,-768.4,0.00019178,2]
[388678732,1759317034631,-500.0,0.00019178,2]
[388678733,1759317034641,-2309.76,0.00019178,2]
[388678734,1759317034650,-515.12,0.00019178,2]
[388678735,1759317034659,-500.0,0.00019178,2]
[388678736,1759317034669,-3328.27,0.00019178,2]
[388678737,1759317034678,-929.38,0.00019178,2]
[388678738,1759317034688,-1925.77,0.00019178,2]
[388678739,1759317034697,-4887.39,0.00019178,2]
[388678740,1759317034707,-3370.98,0.00019178,2]
[388678741,1759317034717,-500.0,0.00019178,2]
[388678742,1759317034727,-500.0,0.00019178,2]
[388678743,1759317034736,-500.0,0.00019178,2]
[388678744,1759317034746,-942.98,0.00019178,2]
[388678745,1759317034755,-3722.29,0.00019178,2]
[388678746,1759317034765,-1554.88,0.00019178,2]
[388678747,1759317034774,-1915.11,0.00019178,2]
[388678748,1759317034784,-742.84,0.00019178,2]
[388678749,1759317034793,-500.0,0.00019178,2]
[388678750,1759317034803,-500.0,0.00019178,2]
[388678751,1759317034812,-696.44,0.00019178,2]
[388678752,1759317034821,-906.43,0.00019178,2]
[388678753,1759317034831,-251.81219487,0.00019178,2]
[388678754,1759317034840,-500.0,0.00019178,2]
[388678755,1759317034849,-500.0,0.00019178,2]
[388678756,1759317034858,-699.56,0.00019178,2]
[388678757,1759317034867,-500.0,0.00019178,2]
[388678758,1759317034877,-1027.8,0.00019178,2]
[388678759,1759317034886,-10998.14,0.00019178,2]
[388678760,1759317034895,-4328.59,0.00019178,2]
[388678761,1759317034905,-552.19,0.00019178,2]
[388678762,1759317034914,-500.0,0.00019178,2]
[388678763,1759317034923,-500.0,0.00019178,2]
[388678764,1759317034932,-1701.35,0.00019178,2]
[388678765,1759317034941,-500.0,0.00019178,2]
[388678766,1759317034951,-500.0,0.00019178,2]
[388678767,1759317034960,-500.0,0.00019178,2]
[388678768,1759317034969,-221.0,0.00019178,2]
[388678769,1759317034979,-845.74,0.00019178,2]
[388678770,1759317034988,-2129.15,0.00019178,2]
[388678771,1759317034998,-500.0,0.00019178,2]
[388678772,1759317035009,-886.07,0.00019178,2]
[388678773,1759317035019,-751.92,0.00019178,2]
[388678774,1759317035029,-1106.74,0.00019178,2]
[388678775,1759317035039,-1595.39,0.00019178,2]
[388678776,1759317035049,-919.52,0.00019178,2]
[388678777,1759317035058,-2034.16,0.00019178,2]
[388678778,1759317035067,-721.29,0.00019178,2]
[388678779,1759317035078,-151.0,0.00019178,2]
[388678780,1759317035087,-500.0,0.00019178,2]
[388678781,1759317035096,-500.0,0.00019178,2]
[388678782,1759317035107,-1924.06,0.00019178,2]
[388678783,1759317035118,-500.0,0.00019178,2]
[388678784,1759317035128,-500.0,0.00019178,2]
[388678785,1759317035137,-500.0,0.00019178,2]
[388678786,1759317035146,-1901.59,0.00019178,2]
[388678787,1759317035155,-1599.46,0.00019178,2]
[388678788,1759317035165,-500.0,0.00019178,2]
[388678789,1759317035175,-500.0,0.00019178,2]
[388678790,1759317035185,-1409.89,0.00019178,2]
[388678791,1759317035195,-500.0,0.00019178,2]
[388678792,1759317035204,-500.0,0.00019178,2]
[388678793,1759317035213,-1391.76,0.00019178,2]
[388678794,1759317035223,-1276.92,0.00019178,2]
[388678795,1759317035232,-1463.75,0.00019178,2]
[388678796,1759317035242,-1929.73,0.00019178,2]
[388678797,1759317035251,-500.0,0.00019178,2]
[388678798,1759317035260,-500.0,0.00019178,2]
[388678799,1759317035270,-634.44,0.00019178,2]
[388678800,1759317035279,-500.0,0.00019178,2]
[388678801,1759317035288,-500.0,0.00019178,2]
[388678802,1759317035297,-1282.7,0.00019178,2]
[388678803,1759317035307,-503.5,0.00019178,2]
[388678804,1759317035315,-2209.34,0.00019178,2]
[388678805,1759317035325,-3235.12,0.00019178,2]
[388678806,1759317035334,-702.01,0.00019178,2]
[388678807,1759317035343,-500.0,0.00019178,2]
[388678808,1759317035352,-500.0,0.00019178,2]
[388678809,1759317035362,-500.0,0.00019178,2]
[388678810,1759317035371,-900.33,0.00019178,2]
[388678811,1759317035381,-500.0,0.00019178,2]
[388678812,1759317035390,-1436.59,0.00019178,2]
[388678813,1759317035399,-1567.18,0.00019178,2]
[388678814,1759317035408,-1291.97,0.00019178,2]
[388678815,1759317035419,-724.52,0.00019178,2]
[388678816,1759317035428,-1262.27,0.00019178,2]
[388678817,1759317035437,-1096.42,0.00019178,2]
[388678818,1759317035446,-1993.91,0.00019178,2]
[388678819,1759317035461,-4458.68,0.00019178,2]
[388678820,1759317035470,-2741.98,0.00019178,2]
[388678821,1759317035480,-500.0,0.00019178,2]
[388678822,1759317035489,-894.69,0.00019178,2]
[388678823,1759317035499,-500.0,0.00019178,2]
[388678824,1759317035508,-2029.79,0.00019178,2]
[388678825,1759317035517,-500.0,0.00019178,2]
[388678826,1759317035526,-1890.66,0.00019178,2]
[388678827,1759317035539,-1696.84,0.00019178,2]
[388678828,1759317035548,-500.0,0.00019178,2]
[388678829,1759317035561,-500.0,0.00019178,2]
[388678830,1759317035570,-500.0,0.00019178,2]
[388678831,1759317035579,-151.0,0.00019178,2]
[388678832,1759317035588,-625.37,0.00019178,2]
[388678833,1759317035597,-1616.75,0.00019178,2]
[388678834,1759317035606,-1295.16,0.00019178,2]
[388678835,1759317035615,-151.0,0.00019178,2]
[388678836,1759317035624,-151.0,0.00019178,2]
[388678837,1759317035633,-930.81,0.00019178,2]
[388678838,1759317035642,-151.0,0.00019178,2]
[388678839,1759317035650,-722.38,0.00019178,2]
[388678840,1759317035660,-708.03,0.00019178,2]
[388678841,1759317035669,-1025.0,0.00019178,2]
[388678842,1759317035679,-894.38,0.00019178,2]
[388678843,1759317035688,-2043.57,0.00019178,2]
[388678844,1759317035696,-151.0,0.00019178,2]
[388678845,1759317035705,-152.09874942,0.00019178,2]
[388678846,1759317035715,-2322.33,0.00019178,2]
[388678847,1759317035723,-500.0,0.00019178,2]
[388678848,1759317035732,-152.8314969,0.00019178,2]
[388678849,1759317035742,-151.02852968,0.00019178,2]
[388678850,1759317035751,-151.94531087,0.00019178,2]
[388678851,1759317035760,-151.7712481,0.00019178,2]
[388678852,1759317035770,-1984.49,0.00019178,2]
[388678853,1759317035779,-500.0,0.00019178,2]
[388678854,1759317035789,-152.30040778,0.00019178,2]
[388678855,1759317035799,-151.0,0.00019178,2]
[388678856,1759317035809,-642.87530596,0.00019178,2]
[388678857,1759317035819,-500.0,0.00019178,2]
[388678858,1759317035829,-500.0,0.00019178,2]
[388678859,1759317035839,-151.0,0.00019178,2]
[388678860,1759317035849,-500.0,0.00019178,2]
[388678861,1759317035860,-3566.33,0.00019178,2]
[388678862,1759317035869,-500.0,0.00019178,2]
[388678863,1759317035879,-151.0,0.00019178,2]
[388678864,1759317035889,-1612.42,0.00019178,2]
[388678865,1759317035900,-500.0,0.00019178,2]
[388678866,1759317035910,-500.0,0.00019178,2]
[388678867,1759317035919,-1047.91,0.00019178,2]
[388678868,1759317035928,-151.0,0.00019178,2]
[388678869,1759317035937,-825.25,0.00019178,2]
[388678870,1759317035948,-500.0,0.00019178,2]
[388678871,1759317035958,-332.11110424,0.00019178,2]
[388678872,1759317035970,-648.53,0.00019178,2]
[388678873,1759317035980,-500.0,0.00019178,2]
[388678874,1759317035989,-584.22093868,0.00019178,2]
[388678875,1759317035998,-1782.18,0.00019178,2]
[388678876,1759317036008,-500.0,0.00019178,2]
[388678877,1759317036018,-2218.49,0.00019178,2]
[388678878,1759317036028,-500.0,0.00019178,2]
[388678879,1759317036038,-500.0,0.00019178,2]
[388678880,1759317036047,-519.63,0.00019178,2]
[388678881,1759317036056,-2881.83,0.00019178,2]
[388678882,1759317036067,-3729.6,0.00019178,2]
[388678883,1759317036077,-166.66,0.00019178,2]
[388678884,1759317036087,-1365.21,0.00019178,2]
[388678885,1759317036097,-485.55437848,0.00019178,2]
[388678886,1759317036106,-500.0,0.00019178,2]
[388678887,1759317036116,-425.79536773,0.00019178,2]
[388678888,1759317036126,-886.48,0.00019178,2]
[388678889,1759317036135,-500.0,0.00019178,2]
[388678890,1759317036146,-500.0,0.00019178,2]
[388678891,1759317036155,-215.1977842,0.00019178,2]
[388678892,1759317036165,-529.21,0.00019178,2]
[388678893,1759317036174,-500.0,0.00019178,2]
[388678894,1759317036184,-1029.29,0.00019351,2]
[388678895,1759317036192,-10000.0,0.00019352,2]
[388678896,1759317036202,-336.0,0.00019417,2]
[388678897,1759317036211,-1029.29,0.00019451,2]
[388678898,1759317036221,-1029.29,0.00019451,2]
[388678899,1759317036230,-1029.29,0.00019451,2]
[388678900,1759317036239,-1029.29,0.00019451,2]
[388678901,1759317036248,-1029.29,0.00019451,2]
[388678902,1759317036257,-1029.52541507,0.00019451,2]
[388678903,1759317036266,-198.0,0.00019452,2]
[388678904,1759317036275,-246.95210255,0.00019452,2]
[388678905,1759317036284,-548.14163582,0.00019452,2]
[388678906,1759317036293,-151.0,0.00019452,2]
[388678907,1759317036302,-151.0,0.00019452,2]
[388678908,1759317036311,-151.0,0.00019452,2]
[388678909,1759317036320,-151.0,0.00019452,2]
[388678910,1759317036329,-1025.0,0.00019452,2]
[388678911,1759317036339,-151.0,0.00019452,2]
[388678912,1759317036348,-151.0,0.00019452,2]
[388678913,1759317036358,-500.0,0.00019452,2]
[388678914,1759317036367,-151.0,0.00019452,2]
[388678915,1759317036376,-500.0,0.00019452,2]
[388678916,1759317036385,-500.0,0.00019452,2]
[388678917,1759317036394,-1043.81,0.00019452,2]
[388678918,1759317036404,-680.43,0.00019452,2]
[388678919,1759317036413,-500.0,0.00019452,2]
[388678920,1759317036422,-599.69,0.00019452,2]
[388678921,1759317036431,-500.0,0.00019452,2]
[388678922,1759317036440,-405.50679589,0.00019452,2]
[388678923,1759317036450,-500.0,0.00019452,2]
[388678924,1759317036463,-1012.61290269,0.00019452,2]
[388678925,1759317036472,-500.0,0.00019452,2]
[388678926,1759317036482,-500.0,0.00019452,2]
[388678927,1759317036491,-500.0,0.00019452,2]
[388678928,1759317036501,-500.0,0.00019452,2]
[388678929,1759317036511,-2013.15,0.00019452,2]
[388678930,1759317036520,-500.0,0.00019452,2]
[388678931,1759317036531,-1685.89,0.00019452,2]
[388678932,1759317036540,-500.0,0.00019452,2]
[388678933,1759317036550,-500.0,0.00019452,2]
[388678934,1759317036559,-973.29,0.00019452,2]
[388678935,1759317036568,-888.35,0.00019452,2]
[388678936,1759317036578,-500.0,0.00019452,2]
[388678937,1759317036587,-1151.0,0.00019452,2]
[388678938,1759317036596,-500.0,0.00019452,2]
[388678939,1759317036605,-507.85,0.00019452,2]
[388678940,1759317036615,-629.1,0.00019452,2]
[388678941,1759317036624,-500.0,0.00019452,2]
[388678942,1759317036633,-524.79,0.00019452,2]
[388678943,1759317036643,-602.75,0.00019452,2]
[388678944,1759317036652,-995.24,0.00019452,2]
[388678945,1759317036661,-500.0,0.00019452,2]
[388678946,1759317036671,-500.0,0.00019452,2]
[388678947,1759317036681,-500.0,0.00019452,2]
[388678948,1759317036691,-500.0,0.00019452,2]
[388678949,1759317036700,-1011.98,0.00019452,2]
[388678950,1759317036710,-1073.62,0.00019452,2]
[388678951,1759317036720,-500.0,0.00019452,2]
[388678952,1759317036730,-500.0,0.00019452,2]
[388678953,1759317036739,-500.0,0.00019452,2]
[388678954,1759317036749,-500.0,0.00019452,2]
[388678955,1759317036758,-500.0,0.00019452,2]
[388678956,1759317036770,-543.52,0.00019452,2]
[388678957,1759317036780,-841.38,0.00019452,2]
[388678958,1759317036788,-500.0,0.00019452,2]
[388678959,1759317036799,-996.71,0.00019452,2]
[388678960,1759317036808,-500.0,0.00019452,2]
[388678961,1759317036818,-500.0,0.00019452,2]
[388678962,1759317036828,-500.0,0.00019452,2]
[388678963,1759317036837,-867.72,0.00019452,2]
[388678964,1759317036847,-995.04,0.00019452,2]
[388678965,1759317036856,-649.93,0.00019452,2]
[388678966,1759317036865,-777.48,0.00019452,2]
[388678967,1759317036875,-2460.48,0.00019452,2]
[388678968,1759317036884,-425.09809606,0.00019452,2]
[388678969,1759317036894,-500.0,0.00019452,2]
[388678970,1759317036903,-2327.31,0.00019452,2]
[388678971,1759317036912,-500.0,0.00019452,2]
[388678972,1759317036921,-500.0,0.00019452,2]
[388678973,1759317036930,-1453.46,0.00019452,2]
[388678974,1759317036939,-500.0,0.00019452,2]
[388678975,1759317036950,-1480.74,0.00019452,2]
[388678976,1759317036959,-500.0,0.00019452,2]
[388678977,1759317036968,-1028.71,0.00019452,2]
[388678978,1759317036978,-500.0,0.00019452,2]
[388678979,1759317036987,-500.0,0.00019452,2]
[388678980,1759317036996,-500.0,0.00019452,2]
[388678981,1759317037005,-500.0,0.00019452,2]
[388678982,1759317037015,-1189.04,0.00019452,2]
[388678983,1759317037024,-500.0,0.00019452,2]
[388678984,1759317037034,-500.0,0.00019452,2]
[388678985,1759317037043,-500.0,0.00019452,2]
[388678986,1759317037052,-500.0,0.00019452,2]
[388678987,1759317037062,-500.0,0.00019452,2]
[388678988,1759317037071,-558.59,0.00019452,2]
[388678989,1759317037080,-614.9,0.00019452,2]
[388678990,1759317037089,-500.0,0.00019452,2]
[388678991,1759317037098,-500.0,0.00019452,2]
[388678992,1759317037108,-804.99,0.00019452,2]
[388678993,1759317037117,-500.0,0.00019452,2]
[388678994,1759317037126,-500.0,0.00019452,2]
[388678995,1759317037135,-500.0,0.00019452,2]
[388678996,1759317037145,-500.0,0.00019452,2]
[388678997,1759317037154,-3246.79,0.00019452,2]
[388678998,1759317037163,-500.0,0.00019452,2]
[388678999,1759317037172,-522.79133605,0.00019452,2]
[388679000,1759317037183,-500.0,0.00019452,2]
[388679001,1759317037191,-415.08703391,0.00019452,2]
[388679002,1759317037201,-730.12,0.00019452,2]
[388679003,1759317037211,-500.0,0.00019452,2]
[388679004,1759317037219,-2515.61,0.00019452,2]
[388679005,1759317037228,-500.0,0.00019452,2]
[388679006,1759317037237,-500.0,0.00019452,2]
[388679007,1759317037246,-500.0,0.00019452,2]
[388679008,1759317037255,-1017.09,0.00019452,2]
[388679009,1759317037264,-500.0,0.00019452,2]
[388679010,1759317037274,-500.0,0.00019452,2]
[388679011,1759317037284,-500.0,0.00019452,2]
[388679012,1759317037293,-1451.28,0.00019452,2]
[388679013,1759317037303,-500.0,0.00019452,2]
[388679014,1759317037311,-384.02029042,0.00019452,2]
[388679015,1759317037321,-500.0,0.00019452,2]
[388679016,1759317037330,-500.0,0.00019452,2]
[388679017,1759317037339,-500.0,0.00019452,2]
[388679018,1759317037348,-500.0,0.00019452,2]
[388679019,1759317037358,-500.0,0.00019452,2]
[388679020,1759317037367,-1045.88,0.00019452,2]
[388679021,1759317037376,-1355.68,0.00019452,2]
[388679022,1759317037385,-500.0,0.00019452,2]
[388679023,1759317037394,-500.0,0.00019452,2]
[388679024,1759317037403,-500.0,0.00019452,2]
[388679025,1759317037413,-662.04,0.00019452,2]
[388679026,1759317037422,-174.9827757,0.00019452,2]
[388679027,1759317037431,-779.29,0.00019452,2]
[388679028,1759317037440,-701.44,0.00019452,2]
[388679029,1759317037450,-205.69422441,0.00019452,2]
[388679030,1759317037464,-630.0,0.00019452,2]
[388679031,1759317037474,-500.0,0.00019452,2]
[388679032,1759317037484,-500.0,0.00019452,2]
[388679033,1759317037493,-766.39,0.00019452,2]
[388679034,1759317037504,-500.0,0.00019452,2]
[388679035,1759317037514,-594.95,0.00019452,2]
[388679036,1759317037523,-500.0,0.00019452,2]
[388679037,1759317037534,-500.0,0.00019452,2]
[388679038,1759317037543,-500.0,0.00019452,2]
[388679039,1759317037552,-500.0,0.00019452,2]
[388679040,1759317037561,-1058.77,0.00019452,2]
[388679041,1759317037571,-500.0,0.00019452,2]
[388679042,1759317037580,-2449.77,0.00019452,2]
[388679043,1759317037590,-500.0,0.00019452,2]
[388679044,1759317037599,-2057.41,0.00019452,2]
[388679045,1759317037610,-151.0,0.00019452,2]
[388679046,1759317037619,-500.0,0.00019452,2]
[388679048,1759317037629,-151.0,0.00019452,2]
[388679049,1759317037638,-732.43,0.00019452,2]
[388679050,1759317037647,-500.0,0.00019452,2]
[388679051,1759317037657,-500.0,0.00019452,2]
[388679052,1759317037666,-500.0,0.00019452,2]
[388679053,1759317037675,-151.0,0.00019452,2]
[388679054,1759317037685,-480.0,0.00019452,2]
[388679055,1759317037694,-151.0,0.00019452,2]
[388679056,1759317037704,-768.4,0.00019452,2]
[388679057,1759317037713,-500.0,0.00019452,2]
[388679058,1759317037723,-2309.76,0.00019452,2]
[388679059,1759317037732,-515.12,0.00019452,2]
[388679060,1759317037741,-430.73298399,0.00019452,2]
[388679061,1759317037751,-3328.27,0.00019452,2]
[388679063,1759317037760,-929.38,0.00019452,2]
[388679065,1759317037769,-1925.77,0.00019452,2]
[388679066,1759317037779,-4887.39,0.00019452,2]
[388679067,1759317037788,-3370.98,0.00019452,2]
[388679068,1759317037798,-500.0,0.00019452,2]
[388679069,1759317037808,-559.66371399,0.00019452,2]
[388679070,1759317037818,-500.0,0.00019452,2]
[388679071,1759317037827,-942.98,0.00019452,2]
[388679072,1759317037838,-3722.29,0.00019452,2]
[388679073,1759317037848,-1554.88,0.00019452,2]
[388679074,1759317037858,-1915.11,0.00019452,2]
[388679075,1759317037868,-742.84,0.00019452,2]
[388679076,1759317037878,-500.0,0.00019452,2]
[388679077,1759317037887,-696.44,0.00019452,2]
[388679078,1759317037897,-906.43,0.00019452,2]
[388679079,1759317037906,-500.0,0.00019452,2]
[388679080,1759317037916,-500.0,0.00019452,2]
[388679081,1759317037925,-500.0,0.00019452,2]
[388679082,1759317037934,-699.56,0.00019452,2]
[388679083,1759317037944,-500.0,0.00019452,2]
[388679084,1759317037953,-1027.8,0.00019452,2]
[388679085,1759317037962,-10998.14,0.00019452,2]
[388679086,1759317037972,-4328.59,0.00019452,2]
[388679087,1759317037983,-552.19,0.00019452,2]
[388679088,1759317037992,-500.0,0.00019452,2]
[388679090,1759317038001,-154.645738,0.00019452,2]
[388679092,1759317038011,-1701.35,0.00019452,2]
[388679094,1759317038019,-500.0,0.00019452,2]
[388679096,1759317038028,-500.0,0.00019452,2]
[388679098,1759317038038,-845.74,0.00019452,2]
[388679101,1759317038200,-2129.15,0.00019452,2]
[388679102,1759317038211,-500.0,0.00019452,2]
[388679103,1759317038221,-886.07,0.00019452,2]
[388679104,1759317038231,-751.92,0.00019452,2]
[388679105,1759317038240,-1106.74,0.00019452,2]
[388679106,1759317038250,-1595.39,0.00019452,2]
[388679107,1759317038259,-919.52,0.00019452,2]
[388679108,1759317038269,-2034.16,0.00019452,2]
[388679109,1759317038279,-151.0,0.00019452,2]
[388679111,1759317038289,-721.29,0.00019452,2]
[388679112,1759317038299,-151.0,0.00019452,2]
[388679114,1759317038308,-151.0,0.00019452,2]
[388679115,1759317038317,-500.0,0.00019452,2]
[388679116,1759317038327,-151.0,0.00019452,2]
[388679117,1759317038336,-500.0,0.00019452,2]
[388679118,1759317038346,-1924.06,0.00019452,2]
[388679119,1759317038355,-480.0,0.00019452,2]
[388679120,1759317038365,-1901.59,0.00019452,2]
[388679121,1759317038374,-1599.46,0.00019452,2]
[388679122,1759317038384,-1409.89,0.00019452,2]
[388679123,1759317038393,-500.0,0.00019452,2]
[388679124,1759317038402,-500.0,0.00019452,2]
[388679125,1759317038411,-1391.76,0.00019452,2]
[388679126,1759317038420,-1276.92,0.00019452,2]
[388679127,1759317038430,-1463.75,0.00019452,2]
[388679128,1759317038439,-1929.73,0.00019452,2]
[388679129,1759317038449,-500.0,0.00019452,2]
[388679130,1759317038467,-500.0,0.00019452,2]
[388679131,1759317038477,-634.44,0.00019452,2]
[388679132,1759317038487,-500.0,0.00019452,2]
[388679133,1759317038498,-500.0,0.00019452,2]
[388679134,1759317038507,-1282.7,0.00019452,2]
[388679135,1759317038517,-503.5,0.00019452,2]
[388679136,1759317038527,-2209.34,0.00019452,2]
[388679137,1759317038539,-3235.12,0.00019452,2]
[388679138,1759317038548,-702.01,0.00019452,2]
[388679139,1759317038558,-500.0,0.00019452,2]
[388679140,1759317038567,-500.0,0.00019452,2]
[388679141,1759317038576,-500.0,0.00019452,2]
[388679142,1759317038584,-900.33,0.00019452,2]
[388679143,1759317038593,-500.0,0.00019452,2]
[388679144,1759317038602,-1436.59,0.00019452,2]
[388679145,1759317038612,-1567.18,0.00019452,2]
[388679146,1759317038621,-1291.97,0.00019452,2]
[388679147,1759317038631,-724.52,0.00019452,2]
[388679148,1759317038640,-1262.27,0.00019452,2]
[388679149,1759317038650,-1096.42,0.00019452,2]
[388679150,1759317038660,-1993.91,0.00019452,2]
[388679151,1759317038669,-4458.68,0.00019452,2]
[388679152,1759317038678,-2741.98,0.00019452,2]
[388679153,1759317038688,-500.0,0.00019452,2]
[388679154,1759317038697,-894.69,0.00019452,2]
[388679155,1759317038707,-500.0,0.00019452,2]
[388679156,1759317038716,-2029.79,0.00019452,2]
[388679157,1759317038725,-500.0,0.00019452,2]
[388679158,1759317038735,-1890.66,0.00019452,2]
[388679159,1759317038744,-1696.84,0.00019452,2]
[388679160,1759317038754,-500.0,0.00019452,2]
[388679161,1759317038764,-500.0,0.00019452,2]
[388679162,1759317038773,-151.0,0.00019452,2]
[388679163,1759317038783,-151.0,0.00019452,2]
[388679164,1759317038792,-625.37,0.00019452,2]
[388679165,1759317038802,-1616.75,0.00019452,2]
[388679166,1759317038812,-1295.16,0.00019452,2]
[388679167,1759317038822,-930.81,0.00019452,2]
[388679168,1759317038831,-722.38,0.00019452,2]
[388679169,1759317038841,-708.03,0.00019452,2]
[388679170,1759317038851,-894.38,0.00019452,2]
[388679171,1759317038860,-2043.57,0.00019452,2]
[388679172,1759317038870,-2322.33,0.00019452,2]
[388679173,1759317038880,-500.0,0.00019452,2]